bitfinex/quotes_ETHUSD_20251024
["timestamp","ask_amount","ask_price","bid_price","bid_amount"]
[1761325076239,3.307,3892.6,3892.4,0.1288]
[1761325076444,4.13266,3892.6,3892.4,0.1288]
[1761325076645,0.4288,3892.5,3892.2,2.56919868]
[1761325076841,3.305,3892.4,3892.3,2.56911419]
[1761325077143,3.305,3892.4,3892.2,2.69803211]
[1761325077453,3.305,3892.4,3892.2,0.1288]
[1761325078863,0.4357,3892.3,3892.2,0.1288]
[1761325079550,0.849556,3892.3,3891.2,0.1276]
[1761325079748,0.978356,3892.3,3891.8,0.1288]
[1761325080054,0.542656,3892.3,3891.8,2.69829083]
[1761325080254,3.303,3892.2,3891.8,2.69829083]
[1761325080566,3.303,3892.2,3891.9,2.56943283]
[1761325080769,0.4357,3892.2,3891.8,0.1288]
[1761325080969,3.302,3892.1,3892.0,2.56937136]
[1761325081154,0.2219,3891.9,3890.3,3.84]
[1761325081467,0.2219,3891.9,3891.5,0.1288]
[1761325081763,0.4357,3891.8,3889.9,2.57273514]
[1761325081966,0.4357,3891.8,3891.3,0.1288]
[1761325082171,0.33558826,3891.7,3891.3,0.1288]
[1761325082342,3.304,3891.6,3891.3,0.1288]
[1761325082543,3.7397,3891.6,3891.1,0.1288]
[1761325082870,3.7397,3891.6,3891.0,2.69882429]
[1761325082871,3.304,3891.6,3891.0,2.69882429]
[1761325083032,0.4357,3891.5,3891.0,0.1288]
[1761325083239,1.11306819,3891.5,3891.0,0.1288]
[1761325083568,2.57002179,3891.1,3890.5,0.1288]
[1761325083731,2.57002179,3891.1,3890.2,2.57051684]
[1761325083732,3.304,3891.0,3889.9,0.002]
[1761325083932,1.5552,3890.8,3890.0,2.57068561]
[1761325084132,0.1288,3890.6,3890.0,0.1288]
[1761325084377,0.1288,3890.4,3889.9,0.1308]
[1761325084570,2.57044477,3890.4,3889.9,0.002]
[1761325084741,0.1288,3890.2,3889.9,0.002]
[1761325085138,0.4357,3890.1,3889.9,0.002]
[1761325085339,3.304,3890.0,3889.9,0.002]
[1761325085762,3.7397,3890.0,3889.9,0.002]
[1761325085965,24.05687045,3890.0,3889.9,0.002]
[1761325086165,24.18567045,3890.0,3889.9,0.002]
[1761325086671,24.18567045,3890.0,3889.5,0.002]
[1761325086672,4.63303845,3889.6,3889.5,0.002]
[1761325086849,9.86603845,3889.6,3889.5,0.002]
[1761325087052,11.73998952,3889.6,3889.5,0.002]
[1761325088954,6.50698952,3889.6,3889.5,0.002]
[1761325089154,11.73898952,3889.6,3889.5,0.002]
[1761325089460,6.50698952,3889.6,3889.5,0.002]
[1761325089778,3.613,3889.6,3889.5,0.002]
[1761325090082,1.684,3889.6,3889.5,0.002]
[1761325090283,0.2219,3889.7,3889.5,0.002]
[1761325090457,3.306,3889.6,3889.5,0.002]
[1761325090655,0.2301,3890.0,3889.6,2.57095845]
[1761325090870,3.52091,3889.9,3889.5,0.002]
[1761325091069,3.306,3889.8,3889.7,2.57084555]
[1761325091668,0.6928,3890.3,3889.5,0.002]
[1761325091982,3.306,3890.2,3889.7,2.57089235]
[1761325092344,0.6928,3890.3,3889.8,2.57080219]
[1761325092544,3.305,3890.2,3889.5,0.002]
[1761325092780,0.79483448,3890.6,3889.5,2.57300726]
[1761325092979,0.79483448,3890.6,3890.2,2.57050645]
[1761325092980,3.305,3890.5,3890.2,2.57050645]
[1761325093213,3.305,3890.4,3890.2,2.57050645]
[1761325093356,14.84769567,3892.0,3890.3,2.57049327]
[1761325093357,1.929,3890.9,3890.3,2.57049327]
[1761325093552,3.305,3890.8,3890.2,2.5705427]
[1761325094466,3.305,3890.8,3890.1,2.57061046]
[1761325094669,3.305,3890.8,3890.2,2.57055523]
[1761325094670,0.4627,3890.7,3890.2,2.57055523]
[1761325094859,3.305,3890.6,3890.2,2.57055154]
[1761325095278,3.305,3890.5,3890.4,2.57040815]
[1761325095788,3.305,3890.5,3889.5,0.002]
[1761325096092,3.305,3890.5,3889.5,0.54201337]
[1761325096250,3.305,3890.5,3889.5,0.259]
[1761325096456,3.305,3890.5,3890.1,2.57061301]
[1761325096680,2.57016574,3890.8,3890.1,2.57061301]
[1761325096929,1.5552,3890.6,3889.5,0.002]
[1761325097088,1.5552,3890.6,3889.9,2.57072925]
[1761325097589,1.5552,3890.6,3890.0,2.57068445]
[1761325098292,1.5552,3890.7,3889.5,0.002]
[1761325098590,3.308,3890.6,3890.0,2.57065248]
[1761325098789,3.7707,3890.6,3889.5,0.002]
[1761325098984,0.4627,3890.5,3889.8,2.57077569]
[1761325099555,0.4627,3890.5,3889.5,0.002]
[1761325099751,3.03310536,3890.5,3889.8,2.57082291]
[1761325099973,0.4627,3890.5,3889.6,2.57095845]
[1761325100165,0.4627,3890.5,3889.7,2.69969235]
[1761325100166,0.1288,3890.3,3889.7,2.69969235]
[1761325100382,3.309,3890.2,3889.7,2.69969235]
[1761325100801,0.4627,3890.2,3889.7,2.69967717]
[1761325101170,3.308,3890.1,3889.5,0.002]
[1761325101401,0.1288,3890.0,3889.5,0.002]
[1761325101567,3.4368,3890.0,3889.5,0.002]
[1761325102075,3.4368,3890.0,3889.5,2.57300962]
[1761325102498,0.4627,3889.9,3889.5,0.002]
[1761325103003,0.4627,3889.9,3889.6,2.57094536]
[1761325103173,3.308,3889.8,3889.6,2.57094536]
[1761325103797,3.308,3889.8,3889.5,2.57300138]
[1761325103978,3.308,3889.8,3889.6,0.002]
[1761325104872,0.1288,3889.7,3889.6,0.002]
[1761325105076,0.1288,3889.7,3889.6,2.57295845]
[1761325105594,3.4358,3889.7,3889.6,0.002]
[1761325106095,0.001,3890.2,3889.8,2.57076599]
[1761325106264,0.1298,3890.2,3889.7,2.57087279]
[1761325106468,0.1298,3890.2,3889.9,2.57071579]
[1761325106469,0.001,3890.2,3889.9,2.57071579]
[1761325106669,0.001,3890.2,3890.1,2.570628]
[1761325106865,3.307,3890.2,3890.1,2.570628]
[1761325107102,0.001,3890.2,3890.1,2.570628]
[1761325107281,3.307,3890.2,3890.1,2.570628]
[1761325108369,3.307,3890.2,3890.0,0.1288]
[1761325108603,3.7697,3890.2,3890.0,2.69948197]
[1761325109098,3.307,3890.2,3889.9,0.1288]
[1761325109300,0.4627,3890.1,3889.9,0.1288]
[1761325109605,0.4627,3890.1,3889.6,0.002]
[1761325109904,3.7187,3890.0,3889.7,2.57089235]
[1761325110402,3.7187,3890.0,3889.6,0.1308]
[1761325110403,3.256,3890.0,3889.6,0.1308]
[1761325110604,0.4627,3889.9,3889.7,2.57089235]
[1761325110900,0.84755,3889.9,3889.6,0.002]
[1761325111304,0.001,3890.2,3889.9,2.57071494]
[1761325111491,3.306,3890.1,3890.0,2.5706811]
[1761325112283,3.306,3890.1,3889.8,2.57082626]
[1761325112284,0.001,3890.2,3889.8,2.57082626]
[1761325112488,0.001,3890.2,3889.6,2.57294971]
[1761325112489,3.7687,3890.1,3889.6,2.57294971]
[1761325112806,3.306,3890.1,3889.9,2.57075901]
[1761325113005,3.306,3890.1,3889.8,2.57081916]
[1761325113208,3.7687,3890.1,3889.8,2.57082592]
[1761325113793,3.7687,3890.1,3889.6,0.002]
[1761325114106,3.7687,3890.1,3889.7,2.57088029]
[1761325114478,3.306,3890.0,3889.7,2.57088029]
[1761325114677,3.306,3890.0,3889.6,0.002]
[1761325114678,3.306,3889.9,3889.6,0.002]
[1761325115075,3.7687,3889.9,3889.6,0.002]
[1761325115275,0.4627,3889.8,3889.6,0.002]
[1761325115478,3.7677,3889.8,3889.6,0.002]
[1761325116809,0.4627,3889.7,3889.6,0.002]
[1761325117924,0.001,3890.2,3889.6,0.002]
[1761325118125,0.001,3890.2,3890.0,2.57063395]
[1761325118280,3.305,3890.1,3889.6,0.259]
[1761325118475,3.305,3890.1,3890.0,2.57069408]
[1761325119114,0.001,3890.2,3889.9,2.57074918]
[1761325119312,3.305,3890.1,3889.9,2.57074918]
[1761325119512,0.4444,3890.2,3889.9,2.57074918]
[1761325119695,3.304,3890.0,3889.9,2.57074918]
[1761325121011,3.304,3890.0,3889.8,2.69960914]
[1761325121218,3.304,3890.0,3889.8,2.69959783]
[1761325121514,3.304,3890.0,3889.6,2.57290205]
[1761325121810,5.232,3889.9,3889.6,2.70172545]
[1761325122015,5.232,3889.9,3889.6,0.1308]
[1761325122188,5.6754,3889.9,3889.6,0.002]
[1761325122682,5.6754,3889.9,3889.6,2.57295466]
[1761325123023,5.232,3889.9,3889.6,2.57295466]
[1761325123229,3.07777235,3889.7,3889.6,0.002]
[1761325123427,4.63297235,3889.7,3889.6,0.002]
[1761325123723,5.07637235,3889.7,3889.6,0.002]
[1761325123895,6.46465729,3889.7,3889.6,0.002]
[1761325124224,6.46465729,3889.7,3889.5,0.002]
[1761325124225,4.63303845,3889.6,3889.5,0.002]
[1761325124400,10.98236908,3889.6,3889.5,0.002]
[1761325124580,7.67836908,3889.6,3889.5,0.002]
[1761325124785,12.91136908,3889.6,3889.5,0.002]
[1761325125204,8.60196759,3889.6,3889.5,0.002]
[1761325125402,13.83496759,3889.6,3889.5,0.002]
[1761325125602,8.60196759,3889.6,3889.5,0.002]
[1761325125809,13.83496759,3889.6,3889.5,0.002]
[1761325126188,12.91136908,3889.6,3889.5,0.002]
[1761325127119,7.67836908,3889.6,3889.5,0.002]
[1761325127319,0.4434,3889.6,3889.5,0.002]
[1761325127506,5.87395845,3889.6,3889.5,0.002]
[1761325127814,4.8582,3889.6,3889.5,0.002]
[1761325128546,1.9986,3889.6,3889.5,0.002]
[1761325128693,5.3036,3889.6,3889.5,0.002]
[1761325128893,1.9986,3889.6,3889.5,0.002]
[1761325129093,5.3026,3889.6,3889.5,0.002]
[1761325129843,9.04524289,3889.6,3889.5,0.002]
[1761325130609,6.47428444,3889.6,3889.5,0.002]
[1761325131033,3.303,3889.6,3889.5,0.002]
[1761325133038,3.07778533,3889.7,3889.5,0.002]
[1761325133239,3.4308,3889.6,3889.5,0.002]
[1761325134016,3.8742,3889.6,3889.5,0.002]
[1761325134332,3.4308,3889.6,3889.5,0.002]
[1761325135202,6.44515845,3889.6,3889.5,0.002]
[1761325136036,3.8742,3889.6,3889.5,0.002]
[1761325136837,0.1288,3889.6,3889.5,0.002]
[1761325137013,3.4278,3889.6,3889.5,0.002]
[1761325138332,0.1288,3889.6,3889.5,0.002]
[1761325138535,3.4268,3889.6,3889.5,0.002]
[1761325141966,3.4278,3889.6,3889.5,0.002]
[1761325144234,0.1298,3889.6,3889.5,0.002]
[1761325144416,3.4248,3889.6,3889.5,0.002]
[1761325144819,3.8826,3889.6,3889.5,0.002]
[1761325146241,3.4248,3889.6,3889.5,0.002]
[1761325149247,3.296,3889.6,3889.5,0.002]
[1761325149644,3.7551,3889.6,3889.5,0.002]
[1761325149851,4.14349,3889.6,3889.5,0.002]
[1761325150250,3.7551,3889.6,3889.5,0.002]
[1761325150934,6.32605845,3889.6,3889.5,0.002]
[1761325156375,5.86695845,3889.6,3889.5,0.002]
[1761325156671,3.296,3889.6,3889.5,0.002]
[1761325156872,5.86695845,3889.6,3889.5,0.002]
[1761325157173,6.83872535,3889.6,3889.5,0.002]
[1761325157563,7.53075153,3889.6,3889.5,0.002]
[1761325157763,7.98985153,3889.6,3889.5,0.002]
[1761325158268,4.95279308,3889.6,3889.5,0.002]
[1761325158470,3.289,3889.6,3889.5,0.002]
[1761325158767,4.44238082,3889.6,3889.5,0.002]
[1761325160269,3.289,3889.6,3889.5,0.002]
[1761325162272,0.001,3889.6,3889.5,2.83202455]
[1761325162570,0.001,3889.6,3889.5,2.98653479]
[1761325162742,0.001,3889.6,3889.5,5.55142223]
[1761325163138,1.626,3890.0,3889.9,2.57076017]
[1761325163571,1.626,3890.0,3889.9,2.82876017]
[1761325164077,0.001,3890.0,3889.9,2.82876017]
[1761325165560,0.001,3890.0,3889.9,4.38396017]
[1761325165749,0.001,3890.0,3889.9,5.07944029]
[1761325172545,0.001,3890.0,3889.9,5.20824029]
[1761325173748,0.001,3890.0,3889.9,8.36644029]
[1761325173960,0.001,3890.0,3889.9,5.07944029]
[1761325176867,0.001,3890.0,3889.9,8.37344029]
[1761325182691,0.001,3890.0,3889.9,14.55885692]
[1761325183795,0.001,3890.0,3889.9,14.68765692]
[1761325183996,0.001,3890.0,3889.9,14.42965692]
[1761325184182,0.001,3890.0,3889.9,14.68765692]
[1761325186590,0.001,3890.0,3889.9,14.55885692]
[1761325189274,0.001,3890.0,3889.9,18.39885692]
[1761325189474,0.001,3890.0,3889.9,19.09214273]
[1761325189674,1e-08,3890.4,3890.3,2.57049584]
[1761325189874,1e-08,3890.4,3890.3,14.52275146]
[1761325191610,1e-08,3890.4,3890.3,15.44547608]
[1761325192310,1e-08,3890.4,3890.3,14.52275146]
[1761325193108,0.001,3890.8,3890.7,4.12543157]
[1761325193312,0.001,3890.8,3890.7,18.86076833]
[1761325193495,0.4451,3892.2,3892.1,2.56930705]
[1761325196484,0.4451,3892.2,3892.1,2.69810705]
[1761325198411,0.2328,3892.8,3892.1,0.1288]
[1761325198626,0.4302,3892.2,3892.1,2.69810705]
[1761325198810,3.7122,3892.7,3892.6,2.56897703]
[1761325199012,0.2328,3892.8,3892.1,2.698107]
[1761325199212,0.2328,3892.8,3892.7,2.56891103]
[1761325199535,0.663,3892.8,3892.7,2.56891103]
[1761325200229,0.663,3892.8,3891.3,0.91975467]
[1761325200392,0.4302,3892.7,3891.6,0.45439299]
[1761325200600,3.281,3892.6,3891.6,4.57919605]
[1761325200793,0.4302,3892.5,3892.4,2.56910903]
[1761325201801,3.7112,3892.5,3892.3,2.56912703]
[1761325201996,0.4302,3892.4,3891.6,0.45439299]
[1761325202336,0.4302,3892.4,3892.3,2.56917503]
[1761325202497,3.7122,3892.4,3892.3,2.56917503]
[1761325202922,0.4302,3892.4,3892.3,2.56917503]
[1761325204251,0.4302,3892.4,3891.2,0.689816]
[1761325204424,0.4302,3892.4,3891.0,5.15183754]
[1761325204629,0.4302,3892.4,3891.5,2.56969486]
[1761325204630,3.45559289,3892.3,3891.5,2.56969486]
[1761325204862,2.56924104,3892.2,3890.9,1.5552]
[1761325205063,0.4302,3892.2,3891.3,2.56982596]
[1761325205214,0.4302,3892.1,3890.9,2.57009946]
[1761325205524,0.4302,3892.1,3889.9,0.002]
[1761325205525,0.233,3891.0,3890.5,5.15183754]
[1761325205726,0.233,3891.0,3890.9,2.57009946]
[1761325205727,3.283,3891.0,3890.9,2.57009946]
[1761325206122,0.233,3891.3,3891.2,2.56990131]
[1761325206318,3.9462,3891.3,3891.2,2.56990131]
[1761325206721,3.9462,3891.3,3890.6,5.15183754]
[1761325206933,0.4302,3891.2,3891.1,2.56991879]
[1761325207252,0.4302,3891.2,3891.0,2.56999068]
[1761325207448,0.4302,3891.2,3890.8,2.5701402]
[1761325207653,0.4302,3891.2,3891.0,2.56998093]
[1761325207854,0.4302,3891.2,3890.3,0.002]
[1761325208041,0.82482,3891.2,3890.3,0.002]
[1761325208560,3.7339,3891.1,3890.8,2.5701624]
[1761325208855,3.7339,3891.1,3890.7,2.57021352]
[1761325209154,0.233,3891.3,3891.0,7.72186452]
[1761325209318,3.285,3891.2,3891.1,2.56996736]
[1761325209523,3.285,3891.2,3891.1,2.69876736]
[1761325209761,3.7369,3891.2,3891.1,2.69876736]
[1761325210255,3.285,3891.2,3891.1,2.69876736]
[1761325210616,0.233,3891.3,3891.2,2.56990131]
[1761325210822,0.4519,3891.6,3891.5,2.56970319]
[1761325211124,3.7359,3891.6,3891.5,2.56970319]
[1761325211753,3.7359,3891.6,3891.4,0.1288]
[1761325211956,0.4519,3891.5,3891.4,0.1288]
[1761325212120,3.7359,3891.5,3891.4,2.69854956]
[1761325212554,3.7359,3891.5,3891.4,0.1288]
[1761325213238,3.7359,3891.5,3891.4,2.69856923]
[1761325213650,3.7359,3891.5,3891.4,0.1288]
[1761325213861,3.7359,3891.5,3891.4,2.69856923]
[1761325216355,3.7359,3891.5,3891.4,0.1288]
[1761325216724,3.7359,3891.5,3891.4,2.69856923]
[1761325217133,0.001,3891.6,3891.4,2.69856923]
[1761325217134,0.001,3891.6,3891.5,2.56970319]
[1761325218460,0.001,3891.6,3891.5,9.27674073]
[1761325218658,0.001,3891.6,3891.5,9.53474073]
[1761325220440,0.001,3891.6,3891.5,9.27674073]
[1761325220637,0.001,3891.6,3891.5,2.56970319]
[1761325220870,0.001,3891.6,3891.5,3.59884039]
[1761325223042,0.001,3891.6,3891.5,2.56970319]
[1761325223577,3.291,3891.6,3891.5,2.56970319]
[1761325224546,0.001,3891.6,3891.5,2.56970319]
[1761325224996,0.001,3891.6,3891.5,2.82770319]
[1761325225157,0.001,3891.6,3891.5,2.56970319]
[1761325225359,0.001,3891.6,3891.5,3.66781941]
[1761325227289,0.001,3891.6,3891.5,3.79661941]
[1761325228732,0.4529,3891.6,3891.5,2.69850319]
[1761325231532,3.289,3891.6,3891.5,2.69850319]
[1761325232153,3.7409,3891.6,3891.5,2.69850319]
[1761325239127,3.7409,3891.6,3891.5,0.1288]
[1761325239328,4.13668,3891.6,3891.5,2.69850319]
[1761325240225,3.7409,3891.6,3891.5,2.69850319]
[1761325246165,0.4529,3891.6,3891.5,2.69850319]
[1761325246326,3.7339,3891.6,3891.5,2.69850319]
[1761325246527,0.4529,3891.6,3891.5,2.69850319]
[1761325246876,3.7329,3891.6,3890.8,0.002]
[1761325247250,3.7329,3891.6,3891.5,2.56970319]
[1761325247415,3.281,3891.6,3891.5,2.56970319]
[1761325248003,4.08777,3891.6,3891.3,2.5698111]
[1761325248156,0.4441,3891.5,3891.3,2.5698111]
[1761325248494,0.4441,3891.5,3891.2,0.1288]
[1761325248495,0.4441,3891.5,3891.4,2.56976923]
[1761325249276,3.7231,3891.5,3891.4,2.56976923]
[1761325249805,3.7231,3891.5,3891.3,2.56982299]
[1761325249986,0.4441,3891.4,3891.2,2.56989658]
[1761325250293,0.4441,3891.4,3891.0,2.57002365]
[1761325250461,0.4441,3891.4,3891.1,2.56991017]
[1761325250658,0.4441,3891.4,3890.9,2.69885003]
[1761325250858,0.4441,3891.4,3891.0,2.57002329]
[1761325251073,0.4441,3891.4,3891.3,2.56983527]
[1761325251461,0.001,3891.6,3891.4,2.56976923]
[1761325251698,3.278,3891.5,3891.4,2.56976923]
[1761325251862,0.4451,3891.6,3891.5,2.56970319]
[1761325252060,3.279,3891.6,3891.5,2.56970319]
[1761325252570,3.7231,3891.6,3891.5,2.56970319]
[1761325253826,0.4451,3891.6,3891.5,2.56970319]
[1761325254030,3.7231,3891.6,3891.4,2.5697643]
[1761325254528,0.4441,3891.5,3891.4,2.5697643]
[1761325254748,0.001,3891.6,3891.5,2.56970319]
[1761325254947,3.278,3891.6,3891.5,2.56970319]
[1761325255453,3.7221,3891.6,3891.5,2.56970319]
[1761325257557,0.4451,3891.6,3891.5,2.56970319]
[1761325257761,3.7211,3891.6,3891.5,2.56970319]
[1761325260916,3.277,3891.6,3891.5,2.56970319]
[1761325261114,3.7123,3891.6,3891.5,2.56970319]
[1761325262033,3.7123,3891.6,3891.3,0.1288]
[1761325262237,3.277,3891.6,3891.5,2.56970319]
[1761325262440,3.63927,3891.6,3891.5,2.56970319]
[1761325262751,4.07457,3891.6,3891.5,2.56970319]
[1761325263059,4.07457,3891.6,3890.8,0.002]
[1761325263222,0.2147,3890.9,3890.8,2.57216551]
[1761325263553,3.4887,3890.9,3890.8,2.57216551]
[1761325263732,3.274,3890.9,3890.8,2.57216551]
[1761325265975,0.5641,3891.4,3891.0,2.56997917]
[1761325266152,3.274,3891.3,3891.1,2.56996523]
[1761325266449,4.09321,3891.3,3891.1,2.56996142]
[1761325266654,0.4353,3891.2,3891.1,2.56996142]
[1761325267159,0.4353,3891.2,3891.0,2.57001735]
[1761325267532,0.4353,3891.2,3891.1,2.56996736]
[1761325268555,0.1298,3891.6,3891.1,2.56991858]
[1761325268757,3.274,3891.5,3891.0,0.1288]
[1761325268962,3.274,3891.5,3891.1,2.56994446]
[1761325269172,0.4308,3891.4,3891.1,2.56994446]
[1761325269529,0.4308,3891.4,3891.3,2.56983527]
[1761325269731,0.001,3891.6,3891.4,2.56971308]
[1761325269936,0.001,3891.6,3891.2,0.1288]
[1761325270137,0.001,3891.6,3891.5,2.56970319]
[1761325270556,3.275,3891.6,3891.5,2.56970319]
[1761325270758,0.001,3891.6,3891.5,3.72798968]
[1761325270965,3.275,3891.6,3891.5,3.72798968]
[1761325271772,0.001,3891.6,3891.5,3.72798968]
[1761325271975,3.275,3891.6,3891.5,3.72798968]
[1761325273168,0.001,3891.6,3891.5,3.72798968]
[1761325273380,0.001,3891.6,3891.5,3.98598968]
[1761325273739,0.001,3891.6,3891.5,5.56688671]
[1761325274071,1.38316637,3893.8,3891.5,5.56688671]
[1761325274072,0.2259,3893.6,3893.5,2.5683832]
[1761325274279,3.0572577,3894.7,3893.5,2.5683832]
[1761325274280,3.0572577,3894.7,3893.5,6.18532677]
[1761325274281,0.2259,3894.4,3893.5,6.18532677]
[1761325274440,3.274,3894.3,3894.0,2.56799246]
[1761325274641,0.48960382,3894.7,3894.5,2.56769109]
[1761325274850,3.4999,3894.6,3894.5,2.56769109]
[1761325275276,0.92040382,3894.7,3894.6,2.56765778]
[1761325275574,3.76360382,3894.7,3894.0,2.56800493]
[1761325275877,3.76360382,3894.7,3893.4,1.6845]
[1761325275878,1.986,3894.6,3893.6,2.56830815]
[1761325276062,1.02835038,3894.5,3893.6,2.56830815]
[1761325276263,1.02835038,3894.5,3893.4,2.69774359]
[1761325276264,1.02835038,3894.5,3893.4,0.1293]
[1761325276451,3.274,3894.4,3893.4,0.1293]
[1761325276654,3.7048,3894.4,3893.4,0.1293]
[1761325277173,0.48960382,3894.7,3894.1,2.56793724]
[1761325277392,0.48960382,3894.7,3893.8,2.56812402]
[1761325277393,3.274,3894.6,3893.8,8.7535]
[1761325277752,3.274,3894.6,3894.5,2.56772371]
[1761325278287,0.48960382,3894.7,3894.6,2.56765778]
[1761325278658,3.76260382,3894.7,3894.6,2.56765778]
[1761325278860,0.48960382,3894.7,3894.6,2.56765778]
[1761325279071,3.76260382,3894.7,3894.6,2.56765778]
[1761325279456,0.48960382,3894.7,3894.6,2.56765778]
[1761325279655,3.273,3894.7,3894.6,2.56765778]
[1761325279856,1.5552,3895.7,3894.6,2.56765778]
[1761325279857,0.2259,3896.1,3894.6,6.6988715]
[1761325280057,0.006,3896.2,3893.9,0.258]
[1761325280058,0.006,3896.2,3896.1,2.56666923]
[1761325280266,0.006,3896.2,3896.1,0.128]
[1761325280484,0.006,3896.2,3895.6,0.1286]
[1761325281000,0.006,3896.2,3895.6,6.31392677]
[1761325281185,0.006,3896.2,3896.1,2.56666923]
[1761325281487,0.006,3896.2,3895.6,6.97111945]
[1761325281488,1.07,3896.2,3896.0,2.56667965]
[1761325281687,1.07,3896.2,3895.6,6.97111945]
[1761325281892,1.07,3896.2,3895.6,0.78579268]
[1761325282190,1.07,3896.2,3896.0,2.5667224]
[1761325282772,1.07,3896.2,3896.1,2.56666923]
[1761325283502,1.071,3896.2,3895.6,0.1286]
[1761325284082,1.071,3896.2,3895.8,2.56685012]
[1761325284389,1.071,3896.2,3895.6,0.1286]
[1761325284699,1.071,3896.2,3895.9,2.56678671]
[1761325284930,1.071,3896.2,3895.8,2.56685034]
[1761325285092,1.071,3896.2,3895.7,2.56692555]
[1761325285496,1.071,3896.2,3895.6,0.1286]
[1761325285709,1.071,3896.2,3895.8,2.56681721]
[1761325286131,0.4308,3896.1,3895.2,0.1286]
[1761325286295,0.2259,3895.9,3894.9,0.1286]
[1761325286701,0.4308,3895.8,3895.2,2.56725841]
[1761325286912,0.4308,3895.8,3894.9,0.1286]
[1761325287113,0.4308,3895.8,3894.5,2.32629424]
[1761325287114,2.56705407,3895.6,3894.5,0.77109424]
[1761325287348,3.58678541,3895.5,3894.8,2.56752346]
[1761325287654,0.2259,3895.9,3894.8,2.56746498]
[1761325287655,3.286,3895.4,3894.8,2.56746498]
[1761325287804,3.286,3895.4,3894.9,2.5674538]
[1761325288125,3.286,3895.4,3894.4,2.56774486]
[1761325288126,0.4308,3895.3,3894.4,2.56774486]
[1761325288332,0.4308,3895.3,3894.0,0.258]
[1761325288333,0.4308,3895.3,3894.7,2.56756221]
[1761325288645,0.007,3896.2,3895.2,0.1286]
[1761325288931,3.289,3896.1,3895.2,0.1286]
[1761325289225,3.289,3896.1,3895.3,0.29539674]
[1761325289432,3.289,3896.1,3895.2,0.1286]
[1761325289433,3.289,3896.1,3895.7,2.56688183]
[1761325289728,3.289,3896.1,3895.8,2.56685926]
[1761325289948,3.289,3896.0,3895.9,2.56679128]
[1761325290228,0.007,3896.2,3895.2,0.1286]
[1761325290401,0.007,3896.2,3896.1,2.56666923]
[1761325290595,0.007,3896.2,3896.1,2.69466923]
[1761325290827,0.007,3896.2,3896.1,0.128]
[1761325291038,3.7268,3896.2,3896.1,0.128]
[1761325291236,3.7268,3896.2,3895.2,0.55372567]
[1761325291531,3.296,3896.2,3895.9,0.128]
[1761325292132,0.4308,3896.1,3895.9,0.128]
[1761325292555,0.007,3896.2,3895.9,0.128]
[1761325292732,0.007,3896.2,3895.2,0.1286]
[1761325292733,0.007,3896.2,3896.0,2.56668806]
[1761325292922,0.007,3896.2,3896.1,2.69466923]
[1761325293123,3.043,3896.2,3896.1,2.69466923]
[1761325293558,0.007,3896.2,3896.1,2.69466923]
[1761325293750,3.296,3896.2,3896.1,2.69466923]
[1761325295126,3.294,3896.2,3896.1,2.69466923]
[1761325295524,0.007,3896.2,3896.1,2.69466923]
[1761325295726,3.294,3896.2,3896.1,2.69466923]
[1761325295943,3.294,3896.2,3896.1,3.22081613]
[1761325297443,0.007,3896.2,3896.1,3.22081613]
[1761325297851,1.608,3896.2,3896.1,3.22081613]
[1761325298028,0.007,3896.2,3896.1,3.22081613]
[1761325298341,3.292,3896.2,3896.1,3.22081613]
[1761325298542,0.007,3896.2,3896.1,3.24648282]
[1761325298742,0.007,3896.2,3896.1,3.47881613]
[1761325301455,0.007,3896.2,3896.1,3.22081613]
[1761325301751,0.007,3896.2,3896.1,3.47881613]
[1761325303154,0.007,3896.2,3896.1,3.22081613]
[1761325304683,0.007,3896.2,3896.1,2.69466923]
[1761325305054,0.4611,3896.2,3896.1,2.69466923]
[1761325305769,0.007,3896.2,3896.1,2.69466923]
[1761325307093,0.007,3896.2,3895.4,0.258]
[1761325307094,0.4611,3896.2,3895.4,2.56708011]
[1761325307385,0.4611,3896.2,3895.6,2.5669512]
[1761325307589,1.09265772,3896.2,3895.5,2.56704483]
[1761325307788,1.09265772,3896.2,3894.5,0.94874172]
[1761325307978,0.4541,3896.1,3894.5,0.258]
[1761325308178,0.4541,3896.1,3894.6,2.56765778]
[1761325308494,3.02078535,3896.1,3895.3,2.56717506]
[1761325308983,3.02078535,3896.1,3895.1,2.56731095]
[1761325308984,0.4541,3896.0,3895.4,2.56710279]
[1761325309166,3.288,3895.9,3895.4,2.56710279]
[1761325309355,0.2236,3895.5,3895.4,2.56710279]
[1761325309562,0.6777,3895.5,3895.4,2.56710279]
[1761325310298,0.6777,3895.5,3894.8,2.56750134]
[1761325310462,0.4541,3895.4,3895.0,2.56738612]
[1761325311663,0.4541,3895.4,3895.1,2.56729709]
[1761325312693,0.4541,3895.4,3895.0,2.56738546]
[1761325313007,0.77856476,3895.4,3894.7,2.56755121]
[1761325313205,0.77856476,3895.4,3894.7,2.56753525]
[1761325313374,0.77856476,3895.4,3894.8,2.56752308]
[1761325313375,0.4541,3895.3,3894.8,2.56752308]
[1761325313690,3.286,3895.2,3894.8,2.56752308]
[1761325314093,0.4541,3895.1,3894.8,2.56750841]
[1761325314267,0.4541,3895.1,3894.9,2.56745363]
[1761325315074,0.4541,3895.1,3894.8,2.56750352]
[1761325316218,1.11727025,3895.1,3894.7,2.56757976]
[1761325316375,0.4541,3895.1,3894.8,2.56751482]
[1761325316707,0.4541,3895.0,3894.6,2.56765436]
[1761325316899,0.4541,3895.0,3894.8,2.5675222]